[Event "23rd Alekhine FIDE 2019"]
[Site "Voronezh"]
[Date "2019.06.12"]
[Round "1.1"]
[White "Egorov, Alexey"]
[Black "Denishev, Marat"]
[Result "1-0"]
[ECO "B12"]
[WhiteElo "1760"]
[BlackElo "2196"]
[Annotator "NA"]
[PlyCount "75"]
[EventDate "2019.06.11"]
[EventType "swiss"]
[EventCountry "RUS"]
[SourceTitle "playchess.com"]
[Source "ChessBase"]
[SourceQuality "1"]
[TimeControl "40/5400+30:1800+30"]

1. e4 {[%emt 0:00:00]} c6 {[%emt 0:00:00]} 2. d4 {[%emt 0:01:15]} d5 {[%emt 0:00:00]} 3. e5 {[%emt 0:00:08]} Bf5 {[%emt 0:00:00]} 4. h4 {[%emt 0:00:05]} h5 {[%emt 0:00:05]} 5. Ne2 {[%emt 0:00:40]} e6 {[%emt 0:00:42]} 6. Ng3 {[%emt 0:00:11]} Bg6 {[%emt 0:00:59]} 7. Bd3 {[%emt 0:00:38]} Bxd3 {[%emt 0:00:16]} 8. Qxd3 {[%emt 0:00:05]} g6 {[%emt 0:00:58]} 9. Bg5 {[%emt 0:04:37]} Be7 {[%emt 0:00:48]} 10. Bxe7 {[%emt 0:01:51]} Nxe7 {[%emt 0:00:03]} 11. Nd2 {[%emt 0:02:49]} Nd7 {[%emt 0:06:43]} 12. Nf3 {[%emt 0:06:58]} c5 {[%emt 0:03:02]} 13. c3 {[%emt 0:03:22]} Rc8 {[%emt 0:02:32]} 14. O-O {[%emt 0:00:48]} Qb6 {[%emt 0:11:52]} 15. b3 {[%emt 0:18:08]} c4 {[%emt 0:14:06]} 16. bxc4 {[%emt 0:04:30]} Rxc4 {[%emt 0:03:25]} 17. Ng5 {[%emt 0:01:49]} Qc6 {[%emt 0:07:01]} 18. Qf3 {[%emt 0:09:14]} Nf5 {[%emt 0:00:05]} 19. Nxf5 {[%emt 0:00:06]} gxf5 {[%emt 0:00:11]} 20. Rfc1 {[%emt 0:11:46]} b5 {[%emt 0:00:17]} 21. Qe3 {[%emt 0:00:24]} Nb6 {[%emt 0:03:28]} 22. Rab1 {[%emt 0:02:08]} Na4 {[%emt 0:01:03]} 23. Rb3 {[%emt 0:00:07]} Qd7 {[%emt 0:07:05]} 24. Nh3 {[%emt 0:02:46]} a6 {[%emt 0:03:36]} 25. Nf4 {[%emt 0:01:10]} Qe7 {[%emt 0:04:57]} 26. g3 {[%emt 0:01:26]} Qf8 {[%emt 0:01:22]} 27. Rb4 {[%emt 0:06:53]} Nb6 {[%emt 0:00:48]} 28. Rcb1 {[%emt 0:02:51]} Qh6 {[%emt 0:08:02]} 29. Rxc4 {[%emt 0:03:02]} Nxc4 {[%emt 0:00:20]} 30. Qe2 {[%emt 0:00:09]} Nb6 {[%emt 0:09:24]} 31. Rb3 {[%emt 0:05:47]} Ke7 {[%emt 0:01:48]} 32. Ra3 {[%emt 0:00:25]} Na4 {[%emt 0:01:40]} 33. Rxa4 {[%emt 0:00:13]} bxa4 {[%emt 0:00:08]} 34. Qxa6 {[%emt 0:00:04]} Qf8 {[%emt 0:05:22]} 35. Qa7+ {[%emt 0:02:55]} Kd8 {[%emt 0:00:30]} 36. Nd3 {[%emt 0:00:18]} Qe8 {[%emt 0:01:23]} 37. Qb8+ {[%emt 0:00:34]} Kd7 {[%emt 0:00:30]} 38. Nc5+ {[%emt 0:00:06]} 1-0

[Event "23rd Alekhine FIDE 2019"]
[Site "Voronezh"]
[Date "2019.06.12"]
[Round "1.2"]
[White "Zhileykin, Andrey"]
[Black "Korolkov, Alexander"]
[Result "1-0"]
[ECO "B30"]
[WhiteElo "2193"]
[BlackElo "1748"]
[Annotator "NA"]
[PlyCount "103"]
[EventDate "2019.06.11"]
[EventType "swiss"]
[EventCountry "RUS"]
[SourceTitle "playchess.com"]
[Source "ChessBase"]
[SourceQuality "1"]
[TimeControl "40/5400+30:1800+30"]

1. e4 {[%emt 0:00:00]} c5 {[%emt 0:00:00]} 2. Nf3 {[%emt 0:00:00]} Nc6 {[%emt 0:00:00]} 3. Nc3 {[%emt 0:00:19]} g6 {[%emt 0:00:00]} 4. Bc4 {[%emt 0:01:34]} Bg7 {[%emt 0:00:39]} 5. O-O {[%emt 0:00:30]} Nf6 {[%emt 0:00:14]} 6. d3 {[%emt 0:00:49]} O-O {[%emt 0:00:15]} 7. a3 {[%emt 0:00:09]} d6 {[%emt 0:06:06]} 8. h3 {[%emt 0:00:14]} a6 {[%emt 0:00:07]} 9. Bg5 {[%emt 0:00:11]} b5 {[%emt 0:00:12]} 10. Ba2 {[%emt 0:00:06]} Bd7 {[%emt 0:01:43]} 11. Qd2 {[%emt 0:00:13]} Rb8 {[%emt 0:08:35]} 12. Bh6 {[%emt 0:01:00]} a5 {[%emt 0:00:07]} 13. Bxg7 {[%emt 0:00:10]} Kxg7 {[%emt 0:00:01]} 14. Nd5 {[%emt 0:00:50]} e6 {[%emt 0:02:08]} 15. Ne3 {[%emt 0:01:44]} Qc7 {[%emt 0:09:45]} 16. Nh2 {[%emt 0:03:48]} Ne7 {[%emt 0:16:07]} 17. f4 {[%emt 0:03:08]} d5 {[%emt 0:00:12]} 18. Neg4 {[%emt 0:06:48]} Nfg8 {[%emt 0:14:49]} 19. Ne5 {[%emt 0:05:38]} b4 {[%emt 0:10:42]} 20. axb4 {[%emt 0:00:33]} Rxb4 {[%emt 0:02:58]} 21. exd5 {[%emt 0:11:35]} exd5 {[%emt 0:05:58]} 22. Nxd7 {[%emt 0:01:07]} Qxd7 {[%emt 0:00:08]} 23. Qc3+ {[%emt 0:00:04]} d4 {[%emt 0:00:51]} 24. Qxc5 {[%emt 0:00:23]} Rxb2 {[%emt 0:00:07]} 25. Bb3 {[%emt 0:00:17]} Rc8 {[%emt 0:07:43]} 26. Qa3 {[%emt 0:01:10]} Rbxc2 {[%emt 0:00:07]} 27. Bxc2 {[%emt 0:00:05]} Rxc2 {[%emt 0:00:03]} 28. Qa4 {[%emt 0:02:37]} Qxa4 {[%emt 0:01:39]} 29. Rxa4 {[%emt 0:00:05]} Nf5 {[%emt 0:05:16]} 30. Ng4 {[%emt 0:00:39]} Rd2 {[%emt 0:02:29]} 31. Rxa5 {[%emt 0:09:45]} Nh4 {[%emt 0:03:47]} 32. Nf2 {[%emt 0:04:49]} Nf6 {[%emt 0:01:44]} 33. g3 {[%emt 0:02:26]} Nf5 {[%emt 0:00:25]} 34. g4 {[%emt 0:03:36]} Ng3 {[%emt 0:00:44]} 35. Rfa1 {[%emt 0:00:48]} Ne2+ {[%emt 0:00:12]} 36. Kf1 {[%emt 0:00:45]} Nxf4 {[%emt 0:00:17]} 37. R5a2 {[%emt 0:00:22]} Rxa2 {[%emt 0:00:45]} 38. Rxa2 {[%emt 0:00:01]} N6d5 {[%emt 0:00:27]} 39. Ra4 {[%emt 0:00:15]} Ne6 {[%emt 0:00:26]} 40. Kg2 {[%emt 0:00:42]} Nc3 {[%emt 0:00:36]} 41. Ra7 {[%emt 0:30:29]} g5 {[%emt 0:31:20]} 42. Kf3 {[%emt 0:00:35]} Kg6 {[%emt 0:00:27]} 43. Rd7 {[%emt 0:00:42]} h6 {[%emt 0:00:39]} 44. Ra7 {[%emt 0:01:39]} Nb5 {[%emt 0:00:27]} 45. Rb7 {[%emt 0:00:31]} Nc3 {[%emt 0:00:32]} 46. Rd7 {[%emt 0:00:07]} Nb5 {[%emt 0:00:31]} 47. Ne4 {[%emt 0:00:53]} Kg7 {[%emt 0:00:37]} 48. Nd6 {[%emt 0:01:08]} Nxd6 {[%emt 0:00:25]} 49. Rxd6 {[%emt 0:00:04]} Kg6 {[%emt 0:00:16]} 50. Ke4 {[%emt 0:00:15]} Kf6 {[%emt 0:00:45]} 51. Rxd4 {[%emt 0:01:38]} Nxd4 {[%emt 0:00:08]} 52. Kxd4 {[%emt 0:00:03]} 1-0

[Event "23rd Alekhine FIDE 2019"]
[Site "Voronezh"]
[Date "2019.06.12"]
[Round "1.3"]
[White "Pranizin, Evgeny"]
[Black "Provkin, Vladimir"]
[Result "1-0"]
[ECO "B59"]
[WhiteElo "1740"]
[BlackElo "2176"]
[Annotator "NA"]
[PlyCount "111"]
[EventDate "2019.06.11"]
[EventType "swiss"]
[EventCountry "RUS"]
[SourceTitle "playchess.com"]
[Source "ChessBase"]
[SourceQuality "1"]
[TimeControl "40/5400+30:1800+30"]

1. e4 {[%emt 0:00:00]} c5 {[%emt 0:00:00]} 2. Nf3 {[%emt 0:00:00]} d6 {[%emt 0:00:00]} 3. d4 {[%emt 0:00:00]} Nf6 {[%emt 0:00:00]} 4. Nc3 {[%emt 0:00:10]} cxd4 {[%emt 0:00:00]} 5. Nxd4 {[%emt 0:00:08]} Nc6 {[%emt 0:00:00]} 6. Be2 {[%emt 0:01:24]} e5 {[%emt 0:00:10]} 7. Nb3 {[%emt 0:01:35]} Be7 {[%emt 0:00:18]} 8. Be3 {[%emt 0:00:34]} O-O {[%emt 0:00:37]} 9. O-O {[%emt 0:00:37]} a5 {[%emt 0:02:29]} 10. Bf3 {[%emt 0:03:28]} a4 {[%emt 0:01:20]} 11. Nd2 {[%emt 0:02:16]} a3 {[%emt 0:00:42]} 12. b3 {[%emt 0:06:57]} Be6 {[%emt 0:00:55]} 13. Nd5 {[%emt 0:01:26]} Bxd5 {[%emt 0:01:45]} 14. exd5 {[%emt 0:00:27]} Nb8 {[%emt 0:00:04]} 15. c4 {[%emt 0:02:54]} Nfd7 {[%emt 0:02:12]} 16. Be2 {[%emt 0:16:05]} f5 {[%emt 0:00:59]} 17. f3 Bg5 {[%emt 0:02:17]} 18. f4 {[%emt 0:10:24]} exf4 {[%emt 0:02:33]} 19. Bxf4 {[%emt 0:00:32]} Bxf4 {[%emt 0:00:51]} 20. Rxf4 {[%emt 0:00:14]} Ne5 {[%emt 0:00:04]} 21. Qf1 {[%emt 0:03:30]} g6 {[%emt 0:03:32]} 22. Qf2 {[%emt 0:00:57]} Nbd7 {[%emt 0:01:03]} 23. Rf1 {[%emt 0:02:23]} Qe7 {[%emt 0:01:23]} 24. Qg3 {[%emt 0:03:16]} Rae8 {[%emt 0:02:01]} 25. Rxf5 {[%emt 0:08:25]} Rxf5 {[%emt 0:04:50]} 26. Rxf5 {[%emt 0:00:19]} Nf7 {[%emt 0:00:26]} 27. Rf2 {[%emt 0:02:08]} Qe3 {[%emt 0:07:07]} 28. Qxe3 {[%emt 0:01:47]} Rxe3 {[%emt 0:00:08]} 29. Bg4 {[%emt 0:11:40]} Nde5 {[%emt 0:00:20]} 30. Be6 {[%emt 0:00:27]} Kg7 {[%emt 0:00:12]} 31. Bxf7 {[%emt 0:01:21]} Nxf7 {[%emt 0:00:08]} 32. Nf3 {[%emt 0:01:00]} Rc3 {[%emt 0:01:32]} 33. Re2 {[%emt 0:02:01]} Kf6 {[%emt 0:01:56]} 34. Kf2 {[%emt 0:00:47]} g5 {[%emt 0:00:40]} 35. Re6+ {[%emt 0:02:13]} Kg7 {[%emt 0:00:21]} 36. g4 {[%emt 0:01:28]} Rc2+ {[%emt 0:02:30]} 37. Re2 {[%emt 0:00:22]} Rc1 {[%emt 0:00:10]} 38. h3 {[%emt 0:01:43]} Ra1 {[%emt 0:02:22]} 39. Rd2 {[%emt 0:01:55]} Kf6 {[%emt 0:00:16]} 40. Nd4 {[%emt 0:00:44]} Ke7 {[%emt 0:03:20]} 41. Nb5 {[%emt 0:30:59]} Ne5 {[%emt 0:30:22]} 42. Nxa3 {[%emt 0:03:48]} Nd3+ {[%emt 0:00:10]} 43. Rxd3 {[%emt 0:01:20]} Rxa2+ {[%emt 0:00:05]} 44. Kg3 {[%emt 0:00:08]} Rxa3 {[%emt 0:00:06]} 45. Re3+ {[%emt 0:00:09]} Kd7 {[%emt 0:00:49]} 46. Kf3 {[%emt 0:00:20]} Ra8 {[%emt 0:01:09]} 47. Ke4 {[%emt 0:00:21]} Re8+ {[%emt 0:00:26]} 48. Kd4 {[%emt 0:00:11]} Rf8 {[%emt 0:00:07]} 49. b4 {[%emt 0:00:22]} Rf4+ {[%emt 0:00:29]} 50. Kc3 {[%emt 0:00:28]} h6 {[%emt 0:03:02]} 51. Kb3 {[%emt 0:01:37]} b6 {[%emt 0:00:53]} 52. Rc3 {[%emt 0:00:33]} Rd4 {[%emt 0:00:09]} 53. Ka4 {[%emt 0:00:18]} Rd1 {[%emt 0:01:14]} 54. Kb5 {[%emt 0:00:10]} Rb1 {[%emt 0:00:08]} 55. Rf3 {[%emt 0:00:19]} Rb2 {[%emt 0:00:20]} 56. Rf6 1-0

[Event "23rd Alekhine FIDE 2019"]
[Site "Voronezh"]
[Date "2019.06.12"]
[Round "1.4"]
[White "Ponomariov, Timur"]
[Black "Al Azmi, Khalaf"]
[Result "1/2-1/2"]
[ECO "A45"]
[WhiteElo "2172"]
[BlackElo "1738"]
[Annotator "NA"]
[PlyCount "133"]
[EventDate "2019.06.11"]
[EventType "swiss"]
[EventCountry "RUS"]
[SourceTitle "playchess.com"]
[Source "ChessBase"]
[SourceQuality "1"]
[TimeControl "40/5400+30:1800+30"]

1. d4 {[%emt 0:00:00]} Nf6 {[%emt 0:00:00]} 2. Nc3 {[%emt 0:00:00]} d5 {[%emt 0:00:37]} 3. Bf4 {[%emt 0:00:07]} Bf5 {[%emt 0:04:09]} 4. e3 {[%emt 0:00:16]} e6 {[%emt 0:04:55]} 5. Nf3 {[%emt 0:00:08]} Bb4 {[%emt 0:04:07]} 6. a3 {[%emt 0:00:46]} Bd6 {[%emt 0:03:24]} 7. Ne5 {[%emt 0:00:11]} a6 {[%emt 0:04:17]} 8. Be2 {[%emt 0:07:28]} h6 {[%emt 0:03:49]} 9. g4 {[%emt 0:00:42]} Bh7 {[%emt 0:00:32]} 10. h4 {[%emt 0:01:09]} Nbd7 {[%emt 0:06:34]} 11. Qd2 {[%emt 0:14:32]} Qe7 {[%emt 0:02:53]} 12. f3 {[%emt 0:05:13]} c5 {[%emt 0:03:52]} 13. Kf2 {[%emt 0:03:38]} g5 {[%emt 0:08:23]} 14. hxg5 {[%emt 0:00:56]} hxg5 {[%emt 0:01:00]} 15. Bg3 {[%emt 0:05:11]} O-O-O {[%emt 0:06:31]} 16. Na4 {[%emt 0:00:46]} Bc7 {[%emt 0:05:41]} 17. Kg2 {[%emt 0:04:45]} Nxe5 {[%emt 0:02:28]} 18. Bxe5 {[%emt 0:00:45]} Bxe5 {[%emt 0:04:37]} 19. Nb6+ {[%emt 0:00:01]} Kb8 {[%emt 0:01:06]} 20. dxe5 {[%emt 0:00:02]} Nd7 {[%emt 0:00:50]} 21. Nxd7+ {[%emt 0:00:14]} Qxd7 {[%emt 0:01:40]} 22. Rh5 {[%emt 0:02:13]} Bg6 {[%emt 0:04:39]} 23. Rxh8 {[%emt 0:24:36]} Rxh8 {[%emt 0:00:23]} 24. Rh1 {[%emt 0:00:02]} Rxh1 25. Kxh1 {[%emt 0:00:51]} Qc7 {[%emt 0:08:58]} 26. Qc3 {[%emt 0:02:00]} Qb6 {[%emt 0:01:42]} 27. b4 {[%emt 0:01:12]} c4 {[%emt 0:01:23]} 28. Kg2 {[%emt 0:02:44]} Qb5 {[%emt 0:01:23]} 29. Bd1 {[%emt 0:00:51]} Qa4 {[%emt 0:01:27]} 30. Kf2 {[%emt 0:00:13]} b6 {[%emt 0:01:12]} 31. Ke1 {[%emt 0:00:52]} Qe8 {[%emt 0:02:08]} 32. Kd2 {[%emt 0:00:39]} Qh8 {[%emt 0:00:55]} 33. Qd4 {[%emt 0:00:14]} Kb7 {[%emt 0:01:25]} 34. Kc3 {[%emt 0:00:42]} Qh1 {[%emt 0:00:59]} 35. a4 {[%emt 0:00:59]} Qe1+ {[%emt 0:02:16]} 36. Qd2 {[%emt 0:00:02]} Qg3 {[%emt 0:00:35]} 37. Kd4 {[%emt 0:02:00]} Kc7 {[%emt 0:02:46]} 38. a5 {[%emt 0:00:08]} b5 {[%emt 0:00:26]} 39. f4 {[%emt 0:06:27]} gxf4 {[%emt 0:00:29]} 40. exf4 {[%emt 0:00:01]} Qg1+ {[%emt 0:02:24]} 41. Kc3 {[%emt 0:30:01]} Qg3+ {[%emt 0:30:15]} 42. Kb2 {[%emt 0:00:38]} Qg1 {[%emt 0:00:31]} 43. f5 {[%emt 0:00:41]} d4 {[%emt 0:00:26]} 44. c3 {[%emt 0:01:11]} dxc3+ {[%emt 0:01:17]} 45. Kxc3 {[%emt 0:00:17]} Qg3+ {[%emt 0:00:34]} 46. Kc2 {[%emt 0:01:03]} Qb3+ {[%emt 0:00:19]} 47. Kc1 {[%emt 0:00:04]} Qa3+ {[%emt 0:00:53]} 48. Kb1 {[%emt 0:00:15]} exf5 {[%emt 0:00:31]} 49. Qd6+ {[%emt 0:00:07]} Kc8 {[%emt 0:01:12]} 50. Qxa6+ {[%emt 0:02:02]} Kd8 {[%emt 0:00:02]} 51. Qb6+ {[%emt 0:01:28]} Ke7 {[%emt 0:00:14]} 52. Qc5+ {[%emt 0:00:23]} Kd8 {[%emt 0:00:36]} 53. Qd5+ {[%emt 0:10:49]} Ke7 {[%emt 0:00:05]} 54. Qc5+ {[%emt 0:00:50]} Kd8 {[%emt 0:00:16]} 55. Qb6+ {[%emt 0:02:13]} Ke7 {[%emt 0:00:10]} 56. Qf6+ {[%emt 0:01:36]} Kf8 {[%emt 0:01:07]} 57. Qh8+ {[%emt 0:00:06]} Ke7 {[%emt 0:00:18]} 58. Qf6+ {[%emt 0:00:02]} Kf8 {[%emt 0:00:11]} 59. Qd6+ {[%emt 0:00:31]} Ke8 {[%emt 0:00:18]} 60. Qb8+ {[%emt 0:00:20]} Ke7 {[%emt 0:00:08]} 61. Qd6+ {[%emt 0:00:47]} Ke8 {[%emt 0:00:32]} 62. Qc6+ {[%emt 0:00:30]} Ke7 {[%emt 0:00:27]} 63. Qc7+ {[%emt 0:00:26]} Ke8 {[%emt 0:00:42]} 64. Qc8+ {[%emt 0:00:11]} Ke7 {[%emt 0:00:18]} 65. Qc7+ {[%emt 0:01:44]} Ke8 {[%emt 0:00:20]} 66. Qc6+ {[%emt 0:00:19]} Ke7 {[%emt 0:00:13]} 67. Qd6+ {[%emt 0:00:43]} 1/2-1/2

[Event "23rd Alekhine FIDE 2019"]
[Site "Voronezh"]
[Date "2019.06.12"]
[Round "1.5"]
[White "Gurskiy, Dmitriy"]
[Black "Eliseev, Mikhail"]
[Result "0-1"]
[ECO "B27"]
[WhiteElo "1738"]
[BlackElo "2169"]
[Annotator "NA"]
[PlyCount "138"]
[EventDate "2019.06.11"]
[EventType "swiss"]
[EventCountry "RUS"]
[SourceTitle "playchess.com"]
[Source "ChessBase"]
[SourceQuality "1"]
[TimeControl "40/5400+30:1800+30"]

1. e4 {[%emt 0:00:00]} c5 {[%emt 0:00:00]} 2. Nf3 {[%emt 0:00:00]} g6 {[%emt 0:00:16]} 3. d4 {[%emt 0:00:40]} cxd4 {[%emt 0:00:06]} 4. Nxd4 {[%emt 0:00:01]} Nc6 {[%emt 0:00:30]} 5. Be3 {[%emt 0:01:28]} Bg7 {[%emt 0:00:18]} 6. c4 {[%emt 0:01:29]} Nf6 {[%emt 0:00:37]} 7. Nc3 {[%emt 0:00:20]} O-O {[%emt 0:01:10]} 8. Be2 {[%emt 0:00:16]} a5 {[%emt 0:01:21]} 9. Qd2 {[%emt 0:05:06]} a4 {[%emt 0:01:24]} 10. O-O {[%emt 0:01:29]} d6 {[%emt 0:01:59]} 11. f3 {[%emt 0:05:20]} Bd7 {[%emt 0:07:02]} 12. Rab1 {[%emt 0:06:45]} Qa5 {[%emt 0:06:33]} 13. Rfd1 {[%emt 0:06:23]} Nxd4 {[%emt 0:02:48]} 14. Bxd4 {[%emt 0:00:53]} Bc6 {[%emt 0:00:13]} 15. Bf1 {[%emt 0:19:09]} Nd7 {[%emt 0:03:32]} 16. Bxg7 {[%emt 0:02:11]} Kxg7 {[%emt 0:00:05]} 17. Qd4+ {[%emt 0:00:01]} Kg8 {[%emt 0:01:29]} 18. Rd2 {[%emt 0:05:56]} Qb4 {[%emt 0:06:23]} 19. b3 {[%emt 0:04:30]} axb3 {[%emt 0:03:09]} 20. axb3 {[%emt 0:00:43]} Ra3 {[%emt 0:02:37]} 21. Na2 {[%emt 0:05:04]} Qc5 {[%emt 0:05:13]} 22. Nc1 {[%emt 0:00:38]} Rfa8 {[%emt 0:03:49]} 23. Ne2 {[%emt 0:05:27]} Ra1 {[%emt 0:05:17]} 24. Rdb2 {[%emt 0:02:45]} Rxb1 {[%emt 0:02:18]} 25. Rxb1 {[%emt 0:00:02]} Ne5 {[%emt 0:04:36]} 26. Qxc5 {[%emt 0:05:28]} dxc5 {[%emt 0:00:07]} 27. Nf4 {[%emt 0:00:04]} Ra2 {[%emt 0:02:42]} 28. b4 {[%emt 0:06:42]} cxb4 {[%emt 0:05:32]} 29. Rxb4 {[%emt 0:00:01]} e6 {[%emt 0:00:24]} 30. Ne2 {[%emt 0:03:02]} g5 {[%emt 0:01:46]} 31. Nd4 {[%emt 0:01:17]} Rd2 {[%emt 0:03:53]} 32. c5 {[%emt 0:02:54]} Nd7 {[%emt 0:01:35]} 33. Rc4 {[%emt 0:02:19]} Kg7 {[%emt 0:01:19]} 34. Nb3 {[%emt 0:01:12]} Rb2 {[%emt 0:00:23]} 35. Rc3 {[%emt 0:00:02]} Kf6 {[%emt 0:01:11]} 36. Na5 {[%emt 0:02:34]} Ra2 {[%emt 0:05:20]} 37. Nxb7 {[%emt 0:00:48]} Bxb7 {[%emt 0:01:00]} 38. c6 {[%emt 0:00:00]} Bxc6 {[%emt 0:00:15]} 39. Rxc6 {[%emt 0:00:01]} Ne5 {[%emt 0:00:42]} 40. Rc3 {[%emt 0:00:49]} h5 {[%emt 0:00:20]} 41. g3 {[%emt 0:30:07]} Ng6 {[%emt 0:35:21]} 42. Rc5 {[%emt 0:01:43]} h4 {[%emt 0:01:14]} 43. Bg2 Rd2 {[%emt 0:00:36]} 44. Ra5 {[%emt 0:02:28]} Ne5 {[%emt 0:00:53]} 45. Ra3 {[%emt 0:02:17]} Rc2 {[%emt 0:03:53]} 46. Ra1 {[%emt 0:00:53]} Nc4 {[%emt 0:00:14]} 47. Re1 {[%emt 0:00:11]} Ke5 {[%emt 0:00:12]} 48. Bf1 {[%emt 0:01:03]} Nd2 {[%emt 0:00:49]} 49. Bg2 {[%emt 0:00:09]} h3 {[%emt 0:02:23]} 50. Bh1 {[%emt 0:00:26]} Nc4 {[%emt 0:01:43]} 51. Rd1 {[%emt 0:01:32]} Nb2 {[%emt 0:00:19]} 52. Rf1 {[%emt 0:00:11]} Nd3 {[%emt 0:00:26]} 53. Rd1 {[%emt 0:00:39]} Kd4 {[%emt 0:01:03]} 54. f4 {[%emt 0:00:35]} gxf4 {[%emt 0:00:05]} 55. gxf4 {[%emt 0:00:04]} Ke3 {[%emt 0:00:06]} 56. f5 {[%emt 0:00:21]} e5 {[%emt 0:00:21]} 57. Rf1 {[%emt 0:00:59]} Rf2 {[%emt 0:01:41]} 58. Ra1 {[%emt 0:00:29]} Rb2 {[%emt 0:01:28]} 59. Rf1 {[%emt 0:00:46]} Rb8 {[%emt 0:00:20]} 60. Ra1 {[%emt 0:00:27]} Ke2 {[%emt 0:00:31]} 61. Ra2+ {[%emt 0:00:48]} Nb2 {[%emt 0:00:25]} 62. Ra3 {[%emt 0:00:21]} Nd3 {[%emt 0:01:22]} 63. Ra2+ {[%emt 0:00:02]} Rb2 {[%emt 0:00:26]} 64. Ra1 {[%emt 0:00:02]} Rc2 {[%emt 0:00:17]} 65. Rf1 {[%emt 0:00:57]} Ra2 {[%emt 0:01:04]} 66. Bf3+ {[%emt 0:00:37]} Ke3 {[%emt 0:00:06]} 67. Bh1 {[%emt 0:00:46]} Ra8 {[%emt 0:00:09]} 68. Rf3+ {[%emt 0:00:09]} Ke2 {[%emt 0:00:06]} 69. Rxh3 {[%emt 0:00:24]} Ra1+ {[%emt 0:00:06]} 0-1

[Event "23rd Alekhine FIDE 2019"]
[Site "Voronezh"]
[Date "2019.06.12"]
[Round "1.6"]
[White "Nasonov, Vadim A."]
[Black "Kushnarenko, Egor"]
[Result "1-0"]
[ECO "D34"]
[WhiteElo "2155"]
[BlackElo "1737"]
[Annotator "NA"]
[PlyCount "53"]
[EventDate "2019.06.11"]
[EventType "swiss"]
[EventCountry "RUS"]
[SourceTitle "playchess.com"]
[Source "ChessBase"]
[SourceQuality "1"]
[TimeControl "40/5400+30:1800+30"]

1. d4 {[%emt 0:00:00]} c5 {[%emt 0:00:00]} 2. Nf3 {[%emt 0:00:00]} e6 {[%emt 0:01:29]} 3. g3 {[%emt 0:00:04]} Nf6 {[%emt 0:00:23]} 4. Bg2 {[%emt 0:00:06]} Nc6 {[%emt 0:00:31]} 5. O-O {[%emt 0:00:09]} d5 {[%emt 0:00:21]} 6. c4 {[%emt 0:00:07]} Be7 {[%emt 0:00:33]} 7. Nc3 {[%emt 0:02:29]} O-O {[%emt 0:03:14]} 8. cxd5 {[%emt 0:03:03]} exd5 {[%emt 0:00:26]} 9. Bg5 {[%emt 0:00:30]} Ne4 {[%emt 0:05:09]} 10. Bxe7 {[%emt 0:00:28]} Nxe7 {[%emt 0:01:38]} 11. dxc5 {[%emt 0:02:21]} Nxc3 {[%emt 0:00:53]} 12. bxc3 {[%emt 0:00:12]} Qc7 {[%emt 0:00:47]} 13. Qd4 {[%emt 0:01:00]} Be6 {[%emt 0:01:09]} 14. Ng5 {[%emt 0:00:14]} Rac8 {[%emt 0:07:07]} 15. Nxe6 {[%emt 0:02:55]} fxe6 {[%emt 0:00:48]} 16. Rab1 {[%emt 0:00:10]} Rf7 {[%emt 0:05:39]} 17. e4 {[%emt 0:01:03]} Nc6 {[%emt 0:05:26]} 18. Qe3 {[%emt 0:00:40]} Rd8 {[%emt 0:01:04]} 19. Rfd1 {[%emt 0:03:06]} Rfd7 {[%emt 0:01:43]} 20. exd5 {[%emt 0:00:23]} exd5 {[%emt 0:00:27]} 21. Rxd5 {[%emt 0:00:29]} Ne7 {[%emt 0:08:21]} 22. Qe6+ {[%emt 0:02:10]} Kh8 {[%emt 0:00:44]} 23. Rxd7 {[%emt 0:00:54]} Rxd7 {[%emt 0:00:59]} 24. Bxb7 {[%emt 0:00:08]} Rd8 {[%emt 0:00:56]} 25. Be4 {[%emt 0:10:26]} Qxc5 {[%emt 0:04:21]} 26. Rb7 {[%emt 0:00:33]} Ng8 {[%emt 0:00:34]} 27. Qf5 {[%emt 0:05:57]} 1-0

[Event "23rd Alekhine FIDE 2019"]
[Site "Voronezh"]
[Date "2019.06.12"]
[Round "1.7"]
[White "Kuzminykh, Nikita"]
[Black "Iliushkin, Evgeny"]
[Result "1/2-1/2"]
[ECO "B40"]
[WhiteElo "1737"]
[BlackElo "2148"]
[Annotator "NA"]
[PlyCount "120"]
[EventDate "2019.06.11"]
[EventType "swiss"]
[EventCountry "RUS"]
[SourceTitle "playchess.com"]
[Source "ChessBase"]
[SourceQuality "1"]
[TimeControl "40/5400+30:1800+30"]

1. e4 {[%emt 0:00:00]} c5 {[%emt 0:00:00]} 2. Nf3 {[%emt 0:00:00]} e6 {[%emt 0:00:00]} 3. c3 {[%emt 0:00:00]} d5 {[%emt 0:00:09]} 4. exd5 {[%emt 0:00:00]} exd5 {[%emt 0:00:03]} 5. d4 {[%emt 0:00:10]} Nc6 {[%emt 0:01:45]} 6. Bf4 {[%emt 0:01:57]} Bd6 {[%emt 0:01:26]} 7. Bxd6 {[%emt 0:00:17]} Qxd6 {[%emt 0:00:03]} 8. dxc5 {[%emt 0:00:18]} Qxc5 {[%emt 0:00:11]} 9. Nbd2 {[%emt 0:00:28]} Nf6 {[%emt 0:03:07]} 10. Nb3 {[%emt 0:00:17]} Qb6 {[%emt 0:07:30]} 11. Be2 {[%emt 0:00:58]} O-O {[%emt 0:00:19]} 12. O-O {[%emt 0:00:33]} Re8 {[%emt 0:01:56]} 13. Re1 {[%emt 0:01:46]} Bg4 {[%emt 0:03:26]} 14. h3 {[%emt 0:00:24]} Bh5 {[%emt 0:08:05]} 15. Nfd4 {[%emt 0:03:46]} Nxd4 {[%emt 0:02:07]} 16. Nxd4 {[%emt 0:00:31]} Bg6 {[%emt 0:16:01]} 17. Qb3 {[%emt 0:06:03]} Qc7 {[%emt 0:02:11]} 18. Bf3 {[%emt 0:01:17]} Be4 {[%emt 0:01:23]} 19. Bxe4 {[%emt 0:02:23]} dxe4 {[%emt 0:05:12]} 20. Rad1 {[%emt 0:05:06]} Rad8 {[%emt 0:04:24]} 21. Re2 {[%emt 0:02:49]} a6 {[%emt 0:00:56]} 22. Rde1 {[%emt 0:00:32]} g6 {[%emt 0:08:47]} 23. f3 {[%emt 0:08:52]} exf3 {[%emt 0:00:37]} 24. Rxe8+ {[%emt 0:00:08]} Rxe8 {[%emt 0:02:26]} 25. Rxe8+ {[%emt 0:00:33]} Nxe8 {[%emt 0:00:03]} 26. Nxf3 {[%emt 0:00:29]} Qc5+ {[%emt 0:00:11]} 27. Kh2 {[%emt 0:01:26]} Nd6 {[%emt 0:00:25]} 28. Qd1 {[%emt 0:01:32]} Kg7 {[%emt 0:08:19]} 29. b4 {[%emt 0:04:25]} Qc7 {[%emt 0:00:39]} 30. Qd4+ {[%emt 0:03:30]} f6 {[%emt 0:00:02]} 31. Qf4 {[%emt 0:06:06]} g5 {[%emt 0:04:53]} 32. Qg3 {[%emt 0:01:33]} Qe7 {[%emt 0:00:43]} 33. Nd4 {[%emt 0:03:27]} Qe5 {[%emt 0:00:58]} 34. Qxe5 {[%emt 0:03:11]} fxe5 {[%emt 0:00:03]} 35. Ne6+ {[%emt 0:00:34]} Kf6 {[%emt 0:00:43]} 36. Nc5 {[%emt 0:01:27]} e4 {[%emt 0:02:22]} 37. Kg3 {[%emt 0:03:57]} Ke5 {[%emt 0:01:11]} 38. Nd7+ {[%emt 0:00:43]} Kd5 {[%emt 0:03:50]} 39. Nf6+ {[%emt 0:00:12]} Kc4 {[%emt 0:00:05]} 40. Nxh7 {[%emt 0:00:21]} Nf7 {[%emt 0:01:54]} 41. Nf6 {[%emt 0:34:24]} e3 {[%emt 0:30:28]} 42. Kf3 {[%emt 0:00:30]} Kxc3 {[%emt 0:00:25]} 43. Kxe3 {[%emt 0:00:21]} Kxb4 {[%emt 0:00:03]} 44. Ne4 {[%emt 0:01:01]} Ka3 {[%emt 0:00:17]} 45. Nc5 {[%emt 0:07:13]} Nd8 {[%emt 0:00:11]} 46. g3 {[%emt 0:01:07]} a5 {[%emt 0:00:44]} 47. h4 {[%emt 0:03:11]} gxh4 {[%emt 0:00:28]} 48. gxh4 {[%emt 0:00:08]} Kxa2 {[%emt 0:05:48]} 49. h5 {[%emt 0:00:20]} b5 {[%emt 0:01:12]} 50. h6 {[%emt 0:02:36]} Nf7 {[%emt 0:00:03]} 51. h7 {[%emt 0:00:55]} b4 {[%emt 0:03:12]} 52. Kd2 {[%emt 0:04:16]} b3 {[%emt 0:02:49]} 53. Nxb3 {[%emt 0:00:04]} Kxb3 {[%emt 0:00:14]} 54. Kc1 {[%emt 0:00:04]} Ka2 {[%emt 0:00:46]} 55. Kc2 {[%emt 0:00:05]} a4 {[%emt 0:00:06]} 56. Kc1 {[%emt 0:00:04]} Nh8 {[%emt 0:00:12]} 57. Kc2 {[%emt 0:00:10]} a3 {[%emt 0:00:21]} 58. Kc1 {[%emt 0:00:09]} Kb3 {[%emt 0:00:36]} 59. Kb1 {[%emt 0:00:06]} a2+ {[%emt 0:00:10]} 60. Ka1 {[%emt 0:00:05]} Ka3 {[%emt 0:00:02]} 1/2-1/2